fUST/lending_fUST_20240704
["ID","MTS","AMOUNT","RATE_DAILY","PERIOD"]
[331124766,1720093852488,-1625.78,0.00014693,2]
[331124767,1720093852497,-500.0,0.00014693,2]
[331124768,1720093852507,-500.0,0.00014693,2]
[331124769,1720093852516,-500.0,0.00014693,2]
[331124770,1720093852525,-500.0,0.00014693,2]
[331124771,1720093852535,-500.0,0.00014693,2]
[331124772,1720093852543,-1345.01,0.00014693,2]
[331124773,1720093852552,-500.0,0.00014693,2]
[331124774,1720093852564,-5556.78,0.00014693,2]
[331124775,1720093852573,-500.0,0.00014693,2]
[331124776,1720093852582,-500.0,0.00014693,2]
[331124777,1720093852591,-500.0,0.00014693,2]
[331124778,1720093852600,-1282.79,0.00014775,2]
[331124779,1720093852609,-500.0,0.00014775,2]
[331124780,1720093852618,-500.0,0.00014775,2]
[331124781,1720093852627,-1816.95,0.00014775,2]
[331124782,1720093852637,-500.0,0.00014775,2]
[331124783,1720093852646,-500.0,0.00014775,2]
[331124784,1720093852655,-500.0,0.00014775,2]
[331124785,1720093852665,-500.0,0.00014775,2]
[331124786,1720093852674,-1149.45,0.00014775,2]
[331124787,1720093852684,-1550.27,0.00014775,2]
[331124788,1720093852693,-500.0,0.00014775,2]
[331124789,1720093852702,-500.0,0.00014775,2]
[331124790,1720093852712,-1028.15,0.00014775,2]
[331124791,1720093852721,-500.0,0.00014775,2]
[331124792,1720093852731,-500.0,0.00014775,2]
[331124793,1720093852741,-500.0,0.00014775,2]
[331124794,1720093852751,-500.0,0.00014775,2]
[331124795,1720093852760,-500.0,0.00014775,2]
[331124796,1720093852845,-307.15370233,0.00014775,2]
[331124797,1720093852855,-865.84,0.00014775,2]
[331124798,1720093852863,-453.93472624,0.00014775,2]
[331124799,1720093852872,-500.0,0.00014775,2]
[331124800,1720093852882,-500.0,0.00014775,2]
[331124801,1720093852891,-1444.78,0.00014775,2]
[331124802,1720093852900,-1323.11,0.00014775,2]
[331124803,1720093852910,-880.31,0.00014775,2]
[331124804,1720093852919,-5932.72,0.00014775,2]
[331124805,1720093852930,-500.0,0.00014775,2]
[331124806,1720093852941,-500.0,0.00014775,2]
[331124807,1720093852951,-500.0,0.00014775,2]
[331124808,1720093852960,-500.0,0.00014775,2]
[331124809,1720093852970,-500.0,0.00014775,2]
[331124810,1720093852980,-345.80954829,0.00014775,2]
[331124811,1720093852989,-673.92,0.00014775,2]
[331124812,1720093852999,-500.0,0.00014775,2]
[331124813,1720093853008,-500.0,0.00014775,2]
[331124814,1720093853018,-1040.62,0.00014775,2]
[331124815,1720093853027,-500.0,0.00014775,2]
[331124816,1720093853036,-500.0,0.00014775,2]
[331124817,1720093853045,-500.0,0.00014775,2]
[331124818,1720093853054,-500.0,0.00014775,2]
[331124819,1720093853063,-1142.32,0.00014775,2]
[331124820,1720093853072,-500.0,0.00014785,2]
[331124821,1720093853081,-1205.3,0.00014785,2]
[331124822,1720093853090,-500.0,0.00014785,2]
[331124823,1720093853099,-1347.981152,0.00014785,2]
[331124824,1720093853108,-500.0,0.00014785,2]
[331124825,1720093853118,-1347.981161,0.00014785,2]
[331124826,1720093853131,-151.0,0.00014785,2]
[331124827,1720093853140,-500.0,0.00014785,2]
[331124828,1720093853149,-550.499214,0.00014785,2]
[331124829,1720093853159,-550.499212,0.00014785,2]
[331124830,1720093853168,-5112.35,0.00014785,2]
[331124831,1720093853177,-500.0,0.00014786,2]
[331124832,1720093853187,-857.1,0.00014786,2]
[331124833,1720093853196,-770.97,0.00014786,2]
[331124834,1720093853207,-500.0,0.00014786,2]
[331124835,1720093853217,-500.0,0.00014786,2]
[331124836,1720093853226,-500.0,0.00014786,2]
[331124837,1720093853235,-500.0,0.00014786,2]
[331124838,1720093853245,-500.0,0.00014786,2]
[331124839,1720093853253,-500.0,0.00014786,2]
[331124840,1720093853263,-500.0,0.00014786,2]
[331124841,1720093853271,-344.81057919,0.00014786,2]
[331124842,1720093853281,-500.0,0.00014786,2]
[331124843,1720093853290,-500.0,0.00014786,2]
[331124844,1720093853300,-500.0,0.00014786,2]
[331124845,1720093853309,-500.0,0.00014786,2]
[331124846,1720093853318,-500.0,0.00014786,2]
[331124847,1720093853327,-500.0,0.00014786,2]
[331124848,1720093853336,-629.77154159,0.00014786,2]
[331124849,1720093853345,-500.0,0.00014786,2]
[331124850,1720093853354,-500.0,0.00014786,2]
[331124851,1720093853364,-526.7275412,0.00014786,2]
[331124852,1720093853373,-500.0,0.00014786,2]
[331124853,1720093853383,-500.0,0.00014786,2]
[331124854,1720093853392,-500.0,0.00014786,2]
[331124855,1720093853401,-500.0,0.00014786,2]
[331124856,1720093853410,-500.0,0.00014786,2]
[331124857,1720093853419,-500.0,0.00014786,2]
[331124858,1720093853427,-198.79627689,0.00014786,2]
[331124859,1720093853436,-500.0,0.00014786,2]
[331124860,1720093853445,-500.0,0.00014786,2]
[331124861,1720093853454,-608.08136095,0.00014786,2]
[331124862,1720093853463,-500.0,0.00014786,2]
[331124863,1720093853472,-500.0,0.00014786,2]
[331124864,1720093853483,-530.82,0.00014786,2]
[331124865,1720093853491,-500.0,0.00014786,2]
[331124866,1720093853500,-500.0,0.00014786,2]
[331124867,1720093853510,-500.0,0.00014786,2]
[331124868,1720093853519,-500.0,0.00014786,2]
[331124869,1720093853528,-500.0,0.00014786,2]
[331124870,1720093853538,-500.0,0.00014786,2]
[331124871,1720093853549,-500.0,0.00014786,2]
[331124872,1720093853559,-500.0,0.00014786,2]
[331124873,1720093853570,-500.0,0.00014786,2]
[331124874,1720093853579,-500.0,0.00014786,2]
[331124875,1720093853588,-500.0,0.00014786,2]
[331124876,1720093853597,-500.0,0.00014786,2]
[331124877,1720093853606,-500.0,0.00014786,2]
[331124878,1720093853615,-500.0,0.00014786,2]
[331124879,1720093853625,-743.39,0.00014786,2]
[331124880,1720093853635,-500.0,0.00014786,2]
[331124881,1720093853646,-500.0,0.00014786,2]
[331124882,1720093853655,-515.26173715,0.00014786,2]
[331124883,1720093853664,-500.0,0.00014786,2]
[331124884,1720093853673,-277.01729115,0.00014786,2]
[331124885,1720093853682,-500.0,0.00014786,2]
[331124886,1720093853692,-500.0,0.00014786,2]
[331124887,1720093853701,-500.0,0.00014786,2]
[331124888,1720093853710,-189.02032087,0.00014786,2]
[331124889,1720093853720,-500.0,0.00014786,2]
[331124890,1720093853731,-500.0,0.00014786,2]
[331124891,1720093853740,-500.0,0.00014786,2]
[331124892,1720093853749,-500.0,0.00014786,2]
[331124893,1720093853758,-500.0,0.00014786,2]
[331124894,1720093853768,-500.0,0.00014786,2]
[331124895,1720093853776,-500.0,0.00014786,2]
[331124896,1720093853785,-418.19524978,0.00014786,2]
[331124897,1720093853794,-500.0,0.00014786,2]
[331124898,1720093853804,-500.0,0.00014786,2]
[331124899,1720093853813,-500.0,0.00014786,2]
[331124900,1720093853822,-500.0,0.00014786,2]
[331124901,1720093853832,-500.0,0.00014786,2]
[331124902,1720093853843,-500.0,0.00014786,2]
[331124903,1720093853852,-500.0,0.00014786,2]
[331124904,1720093853861,-500.0,0.00014786,2]
[331124905,1720093853871,-500.0,0.00014786,2]
[331124906,1720093853881,-500.0,0.00014786,2]
[331124907,1720093853891,-500.0,0.00014786,2]
[331124908,1720093853899,-500.0,0.00014786,2]
[331124909,1720093853910,-500.0,0.00014786,2]
[331124910,1720093853919,-347.45257925,0.00014786,2]
[331124911,1720093853929,-500.0,0.00014786,2]
[331124912,1720093853940,-505.20988298,0.00014786,2]
[331124913,1720093853949,-524.10867881,0.00014786,2]
[331124914,1720093853960,-500.0,0.00014786,2]
[331124915,1720093853970,-283.07585689,0.00014786,2]
[331124916,1720093853980,-500.0,0.00014786,2]
[331124917,1720093853989,-500.0,0.00014786,2]
[331124918,1720093853999,-509.99978689,0.00014786,2]
[331124919,1720093854009,-643.85,0.00014786,2]
[331124920,1720093854018,-500.0,0.00014786,2]
[331124921,1720093854028,-500.0,0.00014786,2]
[331124922,1720093854037,-500.0,0.00014786,2]
[331124923,1720093854046,-500.0,0.00014786,2]
[331124924,1720093854055,-1083.33,0.00014796,2]
[331124925,1720093854063,-500.0,0.00014796,2]
[331124926,1720093854072,-505.70107836,0.00014796,2]
[331124927,1720093854081,-610.61,0.00014796,2]
[331124928,1720093854090,-500.0,0.00014796,2]
[331124929,1720093854100,-500.0,0.00014796,2]
[331124930,1720093854109,-500.0,0.00014796,2]
[331124931,1720093854119,-500.0,0.00014796,2]
[331124932,1720093854132,-598.44742445,0.00014796,2]
[331124933,1720093854141,-500.0,0.00014796,2]
[331124934,1720093854151,-500.0,0.00014796,2]
[331124935,1720093854162,-772.79,0.00014796,2]
[331124936,1720093854172,-624.07,0.00014796,2]
[331124937,1720093854181,-500.0,0.00014796,2]
[331124938,1720093854191,-500.0,0.00014796,2]
[331124939,1720093854200,-875.25,0.00014796,2]
[331124940,1720093854279,-500.0,0.00014796,2]
[331124941,1720093854295,-500.0,0.00014796,2]
[331124942,1720093854304,-500.0,0.00014796,2]
[331124943,1720093854313,-601.9722878,0.00014796,2]
[331124944,1720093854322,-516.32842148,0.00014796,2]
[331124945,1720093854331,-857.78,0.00014796,2]
[331124946,1720093854340,-670.47,0.00014796,2]
[331124947,1720093854350,-519.1,0.00014796,2]
[331124948,1720093854359,-500.0,0.00014796,2]
[331124949,1720093854368,-500.0,0.00014796,2]
[331124950,1720093854377,-500.0,0.00014796,2]
[331124951,1720093854386,-500.0,0.00014796,2]
[331124952,1720093854395,-500.0,0.00014796,2]
[331124953,1720093854404,-500.0,0.00014796,2]
[331124954,1720093854413,-326.98427065,0.00014796,2]
[331124955,1720093854422,-500.0,0.00014796,2]
[331124956,1720093854432,-500.0,0.00014796,2]
[331124957,1720093854442,-500.0,0.00014796,2]
[331124958,1720093854451,-500.0,0.00014802,2]
[331124959,1720093854461,-13008.85,0.00014803,2]
[331124960,1720093854471,-690.32,0.00014803,2]
[331124961,1720093854482,-500.0,0.00014803,2]
[331124962,1720093854490,-500.0,0.00014803,2]
[331124963,1720093854499,-1215.55,0.00014803,2]
[331124964,1720093854514,-6271.9,0.00014803,2]
[331124965,1720093854523,-854.63,0.00014807,2]
[331124966,1720093854532,-1044.76,0.00014807,2]
[331124967,1720093854541,-8161.51,0.00014807,2]
[331124968,1720093854550,-3932.31,0.00014807,2]
[331124969,1720093854560,-150.0,0.00014843,2]
[331124970,1720093854569,-877.0,0.00014843,2]
[331124971,1720093854579,-894.828,0.00014843,2]
[331124972,1720093854588,-50957.59096738,0.00014939,2]
[331124973,1720093854597,-730.45,0.00014954,2]
[331124974,1720093854606,-3072.98,0.00014954,2]
[331124975,1720093854616,-500.0,0.00014954,2]
[331124976,1720093854624,-16067.48,0.00014954,2]
[331124977,1720093854633,-1932.73,0.00014954,2]
[331124978,1720093854642,-500.0,0.00014967,2]
[331124979,1720093854651,-2934.09,0.00014967,2]
[331124980,1720093854660,-500.0,0.00014967,2]
[331124981,1720093854670,-500.0,0.00014967,2]
[331124982,1720093854679,-247.00964311,0.00014967,2]
[331124983,1720093854688,-976.48,0.00014967,2]
[331124984,1720093854696,-500.0,0.00014967,2]
[331124985,1720093854705,-500.0,0.00014967,2]
[331124986,1720093854715,-2272.52,0.00014967,2]
[331124987,1720093854724,-886.35,0.00014967,2]
[331124988,1720093854736,-3075.16,0.00014967,2]
[331124989,1720093854745,-1625.78,0.00014967,2]
[331124990,1720093854755,-500.0,0.00014967,2]
[331124991,1720093854765,-500.0,0.00014967,2]
[331124992,1720093854774,-500.0,0.00014967,2]
[331124993,1720093854784,-500.0,0.00014967,2]
[331124994,1720093854793,-1345.01,0.00014967,2]
[331124995,1720093854803,-500.0,0.00014967,2]
[331124996,1720093854812,-5556.78,0.00014967,2]
[331124997,1720093854822,-500.0,0.00014967,2]
[331124998,1720093854831,-500.0,0.00014967,2]
[331124999,1720093854840,-500.0,0.00014967,2]
[331125000,1720093854850,-9614.54817379,0.00014998,2]
[331125001,1720093854859,-6076.9012323,0.00014998,2]
[331125002,1720093854869,-3609.21901711,0.00014998,2]
[331125003,1720093855168,-800.0,0.00014998,2]
[331125004,1720093909416,776.67023249,9.999e-05,2]
[331125005,1720093911173,157.67667827,9.999e-05,2]
[331125008,1720094090634,565.7746747,9.999e-05,2]
[331125070,1720095031870,-1529.7944441,0.0001283,2]
[331125072,1720095031879,-635.32685365,0.00013747,2]
[331125074,1720095031889,-4881.79137865,0.00013757,2]
[331125076,1720095031898,-246.9705422,0.000138,2]
[331125078,1720095031907,-300.0,0.00013823,2]
[331125080,1720095031916,-4881.79137861,0.00013824,2]
[331125082,1720095031925,-200.91306078,0.00013845,2]
[331125084,1720095031938,-427.12009121,0.00013845,2]
[331125086,1720095031947,-40.2922508,0.00013846,2]
[331125169,1720095037896,-500.0,0.00013845,2]
[331125170,1720095037906,-29739.6128677,0.00013846,2]
[331125171,1720095037916,-29779.9051185,0.00013847,2]
[331125172,1720095037927,-29779.9051185,0.0001385,2]
[331125173,1720095037938,-642.11,0.0001385,2]
[331125174,1720095037949,-2652.98,0.0001385,2]
[331125175,1720095037959,-500.0,0.0001385,2]
[331125176,1720095037969,-13626.7,0.0001385,2]
[331125177,1720095037979,-29779.9051185,0.00013851,2]
[331125178,1720095037992,-29053.07219552,0.00013856,2]
[331125179,1720095038002,-201.81,0.00013856,2]
[331125180,1720095038013,-404.03,0.00013856,2]
[331125181,1720095038023,-298.43,0.00013856,2]
[331125182,1720095038033,-500.0,0.00013856,2]
[331125183,1720095038043,-502.68330273,0.00013856,2]
[331125184,1720095038052,-500.0,0.00013856,2]
[331125185,1720095038062,-463.82252788,0.00013856,2]
[331125186,1720095038072,-1114.68,0.00013856,2]
[331125187,1720095038082,-500.0,0.00013856,2]
[331125188,1720095038092,-500.0,0.00013856,2]
[331125189,1720095038101,-500.0,0.00013856,2]
[331125190,1720095038111,-500.0,0.00013856,2]
[331125191,1720095038120,-500.0,0.00013856,2]
[331125192,1720095038130,-500.0,0.00013856,2]
[331125193,1720095038140,-500.0,0.00013856,2]
[331125194,1720095038149,-500.0,0.00013856,2]
[331125195,1720095038159,-500.0,0.00013856,2]
[331125196,1720095038169,-500.0,0.00013856,2]
[331125197,1720095038179,-500.0,0.00013856,2]
[331125198,1720095038190,-1514.13,0.00013856,2]
[331125199,1720095038199,-500.0,0.00013856,2]
[331125200,1720095038209,-500.0,0.00013856,2]
[331125201,1720095038219,-500.0,0.00013856,2]
[331125202,1720095038228,-509.64505529,0.00013856,2]
[331125203,1720095038241,-500.0,0.00013856,2]
[331125204,1720095038250,-500.0,0.00013856,2]
[331125205,1720095038259,-500.0,0.00013856,2]
[331125206,1720095038269,-500.0,0.00013856,2]
[331125207,1720095038278,-500.0,0.00013856,2]
[331125208,1720095038287,-500.0,0.00013856,2]
[331125209,1720095038297,-500.0,0.00013856,2]
[331125210,1720095038306,-957.88,0.00013856,2]
[331125211,1720095038315,-500.0,0.00013856,2]
[331125212,1720095038325,-1291.89,0.00013856,2]
[331125213,1720095038335,-500.0,0.00013856,2]
[331125214,1720095038345,-500.0,0.00013856,2]
[331125215,1720095038355,-502.93493318,0.00013856,2]
[331125216,1720095038365,-504.09733249,0.00013856,2]
[331125217,1720095038374,-505.2814893,0.00013856,2]
[331125218,1720095038383,-500.0,0.00013856,2]
[331125219,1720095038393,-507.27682454,0.00013856,2]
[331125220,1720095038402,-500.0,0.00013856,2]
[331125221,1720095038412,-500.0,0.00013856,2]
[331125222,1720095038422,-500.0,0.00013856,2]
[331125223,1720095038431,-500.0,0.00013856,2]
[331125224,1720095038441,-500.0,0.00013856,2]
[331125225,1720095038451,-500.0,0.00013856,2]
[331125226,1720095038460,-500.0,0.00013856,2]
[331125227,1720095038469,-500.0,0.00013856,2]
[331125228,1720095038479,-781.28,0.00013856,2]
[331125229,1720095038492,-500.0,0.00013856,2]
[331125230,1720095038508,-500.0,0.00013856,2]
[331125231,1720095038519,-893.7,0.00013856,2]
[331125232,1720095038528,-500.0,0.00013856,2]
[331125233,1720095038539,-511.68476921,0.00013856,2]
[331125234,1720095038549,-500.0,0.00013856,2]
[331125235,1720095038558,-500.0,0.00013856,2]
[331125236,1720095038568,-500.0,0.00013856,2]
[331125237,1720095038579,-700.83,0.00013856,2]
[331125238,1720095038591,-500.0,0.00013856,2]
[331125239,1720095038601,-500.0,0.00013856,2]
[331125240,1720095038611,-500.0,0.00013856,2]
[331125241,1720095038621,-500.0,0.00013856,2]
[331125242,1720095038630,-500.0,0.00013856,2]
[331125243,1720095038640,-500.0,0.00013856,2]
[331125244,1720095038649,-506.10890854,0.00013856,2]
[331125245,1720095038658,-500.0,0.00013856,2]
[331125246,1720095038667,-1610.61,0.00013856,2]
[331125247,1720095038678,-1250.66,0.00013856,2]
[331125248,1720095038687,-500.0,0.00013856,2]
[331125249,1720095038696,-500.0,0.00013856,2]
[331125250,1720095038706,-500.0,0.00013856,2]
[331125251,1720095038715,-500.0,0.00013856,2]
[331125252,1720095038724,-500.0,0.00013856,2]
[331125253,1720095038734,-415.06377454,0.00013856,2]
[331125254,1720095038745,-1145.29,0.00013856,2]
[331125255,1720095038755,-500.0,0.00013856,2]
[331125256,1720095038764,-2445.08,0.00013856,2]
[331125257,1720095038774,-500.0,0.00013856,2]
[331125258,1720095038784,-751.21,0.00013856,2]
[331125259,1720095038794,-5137.03,0.00013856,2]
[331125260,1720095038803,-500.0,0.00013856,2]
[331125261,1720095038812,-500.0,0.00013856,2]
[331125262,1720095038822,-500.0,0.00013856,2]
[331125263,1720095038832,-198.00070053,0.00013856,2]
[331125264,1720095038842,-629.77154159,0.00013856,2]
[331125265,1720095038852,-500.0,0.00013856,2]
[331125266,1720095038861,-500.0,0.00013856,2]
[331125267,1720095038871,-500.0,0.00013856,2]
[331125268,1720095038882,-849.29,0.00013856,2]
[331125269,1720095038891,-500.0,0.00013856,2]
[331125270,1720095038901,-500.0,0.00013856,2]
[331125271,1720095038911,-764.74,0.00013856,2]
[331125272,1720095038921,-500.0,0.00013856,2]
[331125273,1720095038931,-500.0,0.00013856,2]
[331125274,1720095038941,-500.0,0.00013856,2]
[331125275,1720095038952,-500.0,0.00013856,2]
[331125276,1720095038962,-207.92601823,0.00013856,2]
[331125277,1720095038972,-476.00641102,0.00013856,2]
[331125278,1720095038981,-500.0,0.00013856,2]
[331125279,1720095038995,-500.0,0.00013856,2]
[331125280,1720095039004,-261.91,0.00013856,2]
[331125281,1720095039013,-500.0,0.00013856,2]
[331125282,1720095039023,-500.0,0.00013856,2]
[331125283,1720095039032,-500.0,0.00013856,2]
[331125284,1720095039042,-500.0,0.00013856,2]
[331125285,1720095039051,-502.31490436,0.00013856,2]
[331125286,1720095039061,-500.0,0.00013856,2]
[331125287,1720095039072,-1959.29,0.00013856,2]
[331125288,1720095039082,-561.6,0.00013856,2]
[331125289,1720095039091,-500.0,0.00013856,2]
[331125290,1720095039101,-500.0,0.00013856,2]
[331125291,1720095039110,-500.0,0.00013856,2]
[331125292,1720095039120,-345.80954829,0.00013856,2]
[331125293,1720095039130,-500.0,0.00013856,2]
[331125294,1720095039139,-500.0,0.00013856,2]
[331125295,1720095039149,-867.19,0.00013856,2]
[331125296,1720095039159,-500.0,0.00013856,2]
[331125297,1720095039169,-500.0,0.00013856,2]
[331125298,1720095039178,-198.79627689,0.00013856,2]
[331125299,1720095039188,-2630.9,0.00013856,2]
[331125300,1720095039198,-500.0,0.00013856,2]
[331125301,1720095039208,-500.0,0.00013856,2]
[331125302,1720095039218,-500.0,0.00013856,2]
[331125303,1720095039227,-500.0,0.00013856,2]
[331125304,1720095039238,-1394.05,0.00013856,2]
[331125305,1720095039247,-500.0,0.00013856,2]
[331125306,1720095039257,-608.08136095,0.00013856,2]
[331125307,1720095039266,-500.0,0.00013856,2]
[331125308,1720095039277,-500.0,0.00013856,2]
[331125309,1720095039287,-500.0,0.00013856,2]
[331125310,1720095039297,-500.0,0.00013856,2]
[331125311,1720095039307,-1157.54,0.00013856,2]
[331125312,1720095039317,-500.0,0.00013856,2]
[331125313,1720095039327,-500.0,0.00013856,2]
[331125314,1720095039336,-500.0,0.00013856,2]
[331125315,1720095039346,-999.53,0.00013856,2]
[331125316,1720095039356,-500.0,0.00013856,2]
[331125317,1720095039366,-4805.22,0.00013856,2]
[331125318,1720095039375,-500.0,0.00013856,2]
[331125319,1720095039385,-500.0,0.00013856,2]
[331125320,1720095039394,-500.0,0.00013856,2]
[331125321,1720095039405,-766.06,0.00013857,2]
[331125322,1720095039414,-500.0,0.00013857,2]
[331125323,1720095039424,-500.0,0.00013857,2]
[331125324,1720095039434,-500.0,0.00013857,2]
[331125325,1720095039444,-10876.57,0.00013857,2]
[331125326,1720095039454,-581.97,0.00013857,2]
[331125327,1720095039586,-500.0,0.00013857,2]
[331125328,1720095039597,-500.0,0.00013857,2]
[331125329,1720095039607,-1094.42,0.00013857,2]
[331125330,1720095039616,-500.0,0.00013857,2]
[331125331,1720095039626,-407.2131153,0.00013857,2]
[331125332,1720095039635,-500.0,0.00013857,2]
[331125333,1720095039645,-500.0,0.00013857,2]
[331125334,1720095039654,-500.0,0.00013858,2]
[331125335,1720095039663,-500.0,0.00013858,2]
[331125336,1720095039673,-500.0,0.00013858,2]
[331125337,1720095039682,-500.0,0.00013858,2]
[331125338,1720095039691,-500.0,0.00013858,2]
[331125339,1720095039701,-500.0,0.00013858,2]
[331125340,1720095039710,-500.0,0.00013858,2]
[331125341,1720095039719,-500.0,0.00013858,2]
[331125342,1720095039729,-500.0,0.00013858,2]
[331125343,1720095039740,-303.02939214,0.00013858,2]
[331125344,1720095039751,-4260.29,0.00013858,2]
[331125345,1720095039760,-500.0,0.00013858,2]
[331125346,1720095039773,-500.0,0.00013858,2]
[331125347,1720095039783,-500.0,0.00013858,2]
[331125348,1720095039792,-986.8,0.00013858,2]
[331125349,1720095039801,-500.0,0.00013858,2]
[331125350,1720095039811,-500.0,0.00013858,2]
[331125352,1720095039820,-500.0,0.00013858,2]
[331125353,1720095039830,-555.46,0.00013858,2]
[331125354,1720095039840,-500.0,0.00013858,2]
[331125355,1720095039850,-503.01395375,0.00013858,2]
[331125356,1720095039860,-500.0,0.00013858,2]
[331125357,1720095039871,-502.49072805,0.00013858,2]
[331125359,1720095039881,-500.0,0.00013858,2]
[331125360,1720095039890,-524.10867881,0.00013858,2]
[331125362,1720095039900,-500.0,0.00013858,2]
[331125363,1720095039909,-509.99978689,0.00013858,2]
[331125364,1720095039919,-569.04,0.00013858,2]
[331125365,1720095039929,-500.0,0.00013858,2]
[331125366,1720095039938,-500.0,0.00013858,2]
[331125368,1720095039948,-500.0,0.00013858,2]
[331125370,1720095039958,-500.0,0.0001386,2]
[331125371,1720095039968,-500.0,0.0001386,2]
[331125372,1720095039978,-500.0,0.0001386,2]
[331125373,1720095039990,-29779.9051185,0.00013861,2]
[331125374,1720095040000,-500.0,0.0001387,2]
[331125375,1720095040010,-282.91916023,0.0001387,2]
[331125376,1720095040020,-500.0,0.00013871,2]
[331125377,1720095040030,-500.0,0.00013871,2]
[331125378,1720095040039,-500.0,0.00013871,2]
[331125379,1720095040049,-500.0,0.00013871,2]
[331125380,1720095040059,-500.0,0.00013871,2]
[331125381,1720095040069,-500.0,0.00013871,2]
[331125382,1720095040079,-500.0,0.00013871,2]
[331125383,1720095040089,-504.43843048,0.00013871,2]
[331125384,1720095040098,-500.0,0.00013871,2]
[331125386,1720095040108,-500.0,0.00013871,2]
[331125388,1720095040118,-500.0,0.00013871,2]
[331125390,1720095040128,-503.24890876,0.00013871,2]
[331125391,1720095040137,-500.0,0.00013871,2]
[331125393,1720095040147,-500.0,0.00013871,2]
[331125394,1720095040157,-500.0,0.00013871,2]
[331125395,1720095040167,-500.0,0.00013871,2]
[331125396,1720095040177,-579.48305805,0.00013871,2]
[331125397,1720095040188,-500.0,0.00013871,2]
[331125398,1720095040197,-508.27695055,0.00013871,2]
[331125399,1720095040207,-500.0,0.00013871,2]
[331125401,1720095040217,-500.0,0.00013871,2]
[331125403,1720095040227,-500.0,0.00013871,2]
[331125404,1720095040237,-647.15,0.00013871,2]
[331125405,1720095040253,-500.0,0.00013871,2]
[331125406,1720095040263,-500.0,0.00013871,2]
[331125407,1720095040272,-500.0,0.00013871,2]
[331125408,1720095040281,-500.0,0.00013871,2]
[331125410,1720095040291,-500.0,0.00013871,2]
[331125411,1720095040301,-500.0,0.00013871,2]
[331125413,1720095040310,-259.11271614,0.00013871,2]
[331125415,1720095040320,-345.21076198,0.00013871,2]
[331125417,1720095040330,-500.0,0.00013871,2]
[331125418,1720095040339,-500.0,0.00013871,2]
[331125419,1720095040348,-500.0,0.00013871,2]
[331125420,1720095040357,-500.0,0.00013871,2]
[331125421,1720095040367,-500.0,0.00013871,2]
[331125422,1720095040376,-500.0,0.00013871,2]
[331125423,1720095040386,-500.0,0.00013871,2]
[331125424,1720095040395,-1046.54093284,0.00013871,2]
[331125425,1720095040404,-500.0,0.00013871,2]
[331125426,1720095040413,-500.0,0.00013871,2]
[331125427,1720095040423,-518.08539196,0.00013871,2]
[331125428,1720095040432,-500.0,0.00013871,2]
[331125429,1720095040441,-508.71934431,0.00013871,2]
[331125430,1720095040451,-500.0,0.00013871,2]
[331125431,1720095040460,-505.59563584,0.00013871,2]
[331125432,1720095040469,-500.0,0.00013871,2]
[331125433,1720095040478,-500.0,0.00013871,2]